fUST/lending_fUST_20251029
["ID","MTS","AMOUNT","RATE_DAILY","PERIOD"]
[392597665,1761722949102,-1193.36495251,0.00018817,2]
[392597666,1761722949122,-302.63687509,0.000189,2]
[392597667,1761722949143,-169.58352199,0.0001897,2]
[392597668,1761722949163,-1193.36495251,0.0001904,2]
[392597669,1761722949183,-302.63687509,0.00019089,2]
[392597670,1761722949203,-180.4274833,0.00019174,2]
[392597671,1761722949222,-302.63687509,0.00019278,2]
[392597672,1761722949242,-1193.36495251,0.00019348,2]
[392597673,1761722949262,-302.63687509,0.00019467,2]
[392597674,1761722949294,-169.58352199,0.00019557,2]
[392597675,1761722949316,-1193.36495251,0.00019613,2]
[392597676,1761722949336,-302.63687509,0.00019656,2]
[392597677,1761722949357,-300.0,0.00019694,2]
[392597678,1761722949380,-500.0,0.00019695,2]
[392597679,1761722949402,-525.0,0.00019695,2]
[392597680,1761722949427,-197.32230973,0.00019695,2]
[392597681,1761722949450,-500.0,0.00019695,2]
[392597682,1761722949472,-500.0,0.00019695,2]
[392597683,1761722949495,-500.0,0.00019695,2]
[392597684,1761722949518,-500.0,0.00019695,2]
[392597685,1761722949539,-549.5268034,0.00019695,2]
[392597686,1761722949559,-576.06998002,0.00019695,2]
[392597687,1761722949579,-580.86949779,0.00019695,2]
[392597688,1761722949601,-500.0,0.00019695,2]
[392597689,1761722949623,-189.27982779,0.00019695,2]
[392597690,1761722949646,-500.0,0.00019695,2]
[392597691,1761722949669,-485.0,0.00019695,2]
[392597692,1761722949692,-500.0,0.00019695,2]
[392597693,1761722949714,-500.0,0.00019695,2]
[392597694,1761722949737,-500.0,0.00019695,2]
[392597695,1761722949760,-396.62221869,0.00019695,2]
[392597696,1761722949782,-1200.0,0.00019695,2]
[392597697,1761722949804,-8324.08080772,0.00019696,2]
[392597698,1761722964077,-19466.95638209,0.00019696,2]
[392597699,1761722967134,-7807.39035019,0.00019696,2]
[392597700,1761722967154,-300.0,0.00019697,2]
[392597701,1761722967174,-300.0,0.00019697,2]
[392597702,1761722967195,-300.0,0.00019697,2]
[392597703,1761722967216,-1200.0,0.00019697,2]
[392597704,1761722967236,-183.13233534,0.00019699,4]
[392597705,1761722967256,-1193.36495251,0.00019779,2]
[392597706,1761722967276,-453.95531264,0.00019845,4]
[392597707,1761723006953,257.98029544,0.00019687,2]
[392597708,1761723009380,9768.22106283,0.00019553,2]
[392597739,1761723032648,-2424.38268157,0.00019553,2]
[392597740,1761723032659,-4164.9531115,0.00019553,2]
[392597741,1761723032669,-262.58551631,0.00019687,2]
[392597742,1761723032678,-1200.0,0.00019989,2]
[392597743,1761723032688,-8731.92080451,0.0001999,2]
[392597744,1761723032697,-200.0,0.0001999,2]
[392597745,1761723032707,-554.62767123,0.0002,2]
[392597746,1761723032716,-177.0,0.00020033,2]
[392597747,1761723032725,-384.37027406,0.00020034,4]
[392597748,1761723032735,-5026.94322701,0.00020299,2]
[392597749,1761723032744,-300.0,0.00020299,2]
[392597750,1761723032754,-300.0,0.00020299,2]
[392597751,1761723032763,-300.0,0.00020299,2]
[392597752,1761723032772,-300.0,0.00020299,2]
[392597753,1761723032782,-300.0,0.00020299,2]
[392597754,1761723032792,-9845.4647186,0.0002063,2]
[392597755,1761723032801,-1715.33508962,0.0002063,2]
[392597757,1761723032810,-1447.8,0.0002072,10]
[392597759,1761723032820,-1206.5,0.0002072,10]
[392597760,1761723032829,-225.0,0.00020729,2]
[392597762,1761723032838,-210.73580208,0.00020729,2]
[392597763,1761723032847,-165.0,0.00020729,2]
[392597764,1761723032856,-205.73358388,0.00020729,2]
[392597765,1761723032865,-239.43009392,0.00020729,2]
[392597766,1761723032876,-167.60106574,0.00020729,2]
[392597767,1761723032887,-151.0,0.0002073,7]
[392597768,1761723032896,-153.061395,0.0002073,7]
[392597769,1761723032906,-159.324881,0.0002073,7]
[392597770,1761723032917,-211.762576,0.0002073,7]
[392597771,1761723032927,-211.762576,0.0002073,7]
[392597772,1761723032939,-211.762576,0.0002073,7]
[392597773,1761723032948,-211.762576,0.0002073,7]
[392597774,1761723032961,-151.0,0.0002073,7]
[392597775,1761723032970,-151.0,0.0002073,7]
[392597776,1761723032980,-309.056993,0.0002073,7]
[392597777,1761723032990,-309.056993,0.0002073,7]
[392597778,1761723032999,-309.056993,0.0002073,7]
[392597779,1761723033008,-309.056993,0.0002073,7]
[392597780,1761723033017,-288.335059,0.0002073,7]
[392597781,1761723033027,-165.403866,0.0002073,2]
[392597782,1761723033037,-165.403866,0.0002073,2]
[392597783,1761723033046,-165.403866,0.0002073,2]
[392597784,1761723033056,-165.403866,0.0002073,2]
[392597785,1761723033066,-151.0,0.0002073,7]
[392597786,1761723033076,-151.0,0.0002073,7]
[392597787,1761723033085,-153.86517281,0.0002073,7]
[392597788,1761723033095,-157781.00004565,0.0002073,2]
[392597789,1761723033308,-198.36252151,0.0002073,2]
[392597790,1761723033319,-4784.7327174,0.0002073,2]
[392597791,1761723033330,-935.95,0.0002073,2]
[392597792,1761723033342,-5778.08277635,0.0002073,2]
[392597793,1761723033527,777.80537624,0.000192,2]
[392597813,1761723038525,-1005.41,0.0002072,10]
[392597814,1761723038536,-976.57517767,0.0002073,2]
[392597851,1761723043743,-35598.42754,0.0002073,2]
[392597868,1761723214636,-907.73339442,0.00032951,32]
[392597869,1761723214701,-5000.0,0.00032951,30]
[392597870,1761723214761,-7000.0,0.00032951,30]
[392597871,1761723214813,-501109.73878486,0.00032951,30]
[392597872,1761723214867,-2665.3076414,0.00032951,35]
[392597873,1761723214926,-1000.02288797,0.00032951,30]
[392597874,1761723214984,-315.3045699,0.00032951,30]
[392597875,1761723215039,-301.33,0.00032951,30]
[392597876,1761723215096,-500.0,0.00032951,60]
[392597877,1761723215152,-500.0,0.00032951,60]
[392597878,1761723215207,-500.0,0.00032951,60]
[392597879,1761723215263,-500.0,0.00032951,60]
[392597880,1761723215319,-500.0,0.00032951,60]
[392597881,1761723215376,-500.0,0.00032951,60]
[392597882,1761723215431,-500.0,0.00032951,60]
[392597883,1761723215488,-500.0,0.00032951,60]
[392597884,1761723215543,-500.0,0.00032951,60]
[392597885,1761723215595,-500.0,0.00032951,60]
[392597886,1761723215650,-500.0,0.00032951,60]
[392597887,1761723215705,-500.0,0.00032951,60]
[392597888,1761723215760,-500.0,0.00032951,60]
[392597889,1761723215812,-500.0,0.00032951,60]
[392597890,1761723215872,-500.0,0.00032951,60]
[392597891,1761723215935,-500.0,0.00032951,60]
[392597892,1761723215995,-336.09277682,0.00032951,60]
[392597893,1761723216053,-214.32382756,0.00032951,60]
[392597894,1761723216110,-676.247536,0.00032951,120]
[392597895,1761723216166,-189.1903062,0.00032951,120]
[392597896,1761723216227,-500.0,0.00032951,60]
[392597897,1761723216288,-300.00000037,0.00032951,60]
[392597898,1761723216343,-2761.3306028,0.00032951,120]
[392597899,1761723216396,-3000.45372661,0.00032951,60]
[392597900,1761723216448,-1091.7728408,0.00032951,60]
[392597901,1761723216503,-707.17411761,0.00032951,120]
[392597902,1761723216558,-1449.62356076,0.00032951,120]
[392597903,1761723216613,-286.06,0.00032951,30]
[392597904,1761723216668,-3680.12638326,0.00032951,120]
[392597905,1761723216724,-5922.23316421,0.00032951,120]
[392597906,1761723216779,-200.0,0.00032951,30]
[392597907,1761723231887,-95000.0,0.00023288,30]
[392597908,1761723232035,-215.26,0.00025074,30]
[392597909,1761723232121,-299.91896911,0.00026297,56]
[392597910,1761723232194,-154.235581,0.00027099,30]
[392597911,1761723232257,-154.235581,0.00027198,30]
[392597912,1761723232317,-154.235581,0.00027298,30]
[392597913,1761723232371,-299.91896911,0.0002736,110]
[392597914,1761723232428,-154.235581,0.00027397,30]
[392597915,1761723232483,-151.0,0.00027397,31]
[392597916,1761723232535,-151.0,0.00027397,31]
[392597917,1761723232587,-151.0,0.00027397,31]
[392597918,1761723232639,-151.0,0.00027397,31]
[392597919,1761723232698,-151.0,0.00027397,31]
[392597920,1761723232750,-245.658229,0.00027397,31]
[392597921,1761723232803,-168.502309,0.00027397,31]
[392597922,1761723232866,-347.77,0.00028,30]
[392597923,1761723232930,-1000.0,0.00028277,30]
[392597924,1761723232987,-189.321163,0.00028937,60]
[392597925,1761723233042,-190.824489,0.00029041,30]
[392597926,1761723233099,-190.824489,0.00029041,30]
[392597927,1761723233156,-190.824489,0.00029041,30]
[392597928,1761723233215,-190.824489,0.00029041,30]
[392597929,1761723233272,-190.824489,0.00029041,30]
[392597930,1761723233326,-190.824489,0.00029041,30]
[392597931,1761723233381,-190.824489,0.00029041,30]
[392597932,1761723233437,-190.824489,0.00029041,30]
[392597933,1761723233492,-190.824489,0.00029041,30]
[392597934,1761723233547,-190.824489,0.00029041,30]
[392597935,1761723233603,-190.824489,0.00029041,30]
[392597936,1761723233659,-190.824489,0.00029041,30]
[392597937,1761723233715,-190.824489,0.00029041,30]
[392597938,1761723233767,-190.824489,0.00029041,30]
[392597939,1761723233819,-190.824489,0.00029041,30]
[392597940,1761723233874,-190.824489,0.00029041,30]
[392597941,1761723233930,-190.824489,0.00029041,30]
[392597942,1761723233987,-190.824489,0.00029041,30]
[392597943,1761723234042,-190.824489,0.00029041,30]
[392597944,1761723234096,-190.824484,0.00029041,30]
[392597945,1761723234154,-406396.02,0.0002944,30]
[392597946,1761723234212,-299.2154913,0.00029546,30]
[392597947,1761723234267,-163.6085661,0.00029546,30]
[392597948,1761723234319,-153.787657,0.00029546,30]
[392597949,1761723234369,-319.2525618,0.00029546,30]
[392597950,1761723234423,-1000.0,0.0003,30]
[392597951,1761723234475,-373.43048184,0.0003,30]
[392597952,1761723234526,-800.0,0.0003,30]
[392597953,1761723234577,-544.17578858,0.0003,30]
[392597954,1761723234631,-4374.89,0.0003,30]
[392597955,1761723234688,-8421.12684387,0.0003,30]
[392597956,1761723234741,-1158.84,0.0003,30]
[392597957,1761723234794,-400.0,0.00030136,60]
[392597958,1761723234846,-500.0,0.00030137,30]
[392597959,1761723234898,-500.0,0.00030137,30]
[392597960,1761723234952,-500.0,0.00030137,30]
[392597961,1761723235011,-1667.29,0.00030137,120]
[392597962,1761723235068,-645.0,0.00030137,120]
[392597963,1761723235126,-173.97060542,0.00030139,120]
[392597964,1761723235187,-182.79878738,0.00030139,120]
[392597965,1761723235247,-174.35345025,0.00030139,120]
[392597966,1761723235305,-445.45,0.0003014,30]
[392597967,1761723235364,-4018.48823787,0.0003015,120]
[392597968,1761723235421,-1158.84,0.0003018,30]
[392597969,1761723235479,-200.0,0.00030284,120]
[392597970,1761723235534,-163.6085661,0.00030368,30]
[392597971,1761723235589,-591.0274796,0.00030368,30]
[392597972,1761723235648,-299.2154913,0.00030368,30]
[392597973,1761723235704,-299.2154913,0.00030368,30]
[392597974,1761723235757,-163.6085661,0.00030368,30]
[392597975,1761723235808,-591.0274796,0.00030368,30]
[392597976,1761723235862,-591.0274796,0.00030368,30]
[392597977,1761723235915,-163.6085661,0.00030368,30]
[392597978,1761723235966,-591.0274796,0.00030368,30]
[392597979,1761723236018,-298.6682909,0.00030368,30]
[392597980,1761723236196,-293.6760081,0.00030368,30]
[392597981,1761723236247,-591.0274796,0.00030368,30]
[392597982,1761723236298,-163.6085661,0.00030368,30]
[392597983,1761723236351,-163.6085661,0.00030368,30]
[392597984,1761723236400,-591.0274796,0.00030368,30]
[392597985,1761723236453,-158.7044423,0.00030368,30]
[392597986,1761723236508,-575.8735931,0.00030368,30]
[392597987,1761723236560,-970.8381259,0.0003039,30]
[392597988,1761723236613,-1000.0,0.00030411,120]
[392597989,1761723236668,-200.0,0.00030566,120]
[392597990,1761723236723,-1000.0,0.00030685,120]
[392597991,1761723236773,-1000.0,0.00030685,120]
[392597992,1761723236828,-200.0,0.00030788,120]
[392597993,1761723236886,-396.96345401,0.0003079,30]
[392597994,1761723236939,-349.11278,0.000308,120]
[392597995,1761723236992,-254.77846,0.000308,120]
[392597996,1761723237046,-200.0,0.00030873,120]
[392597997,1761723237100,-294.06002,0.000309,120]
[392597998,1761723237154,-1000.0,0.00030959,120]
[392597999,1761723237212,-200.0,0.00030968,120]
[392598000,1761723237268,-3300.0,0.00031,30]
[392598001,1761723237320,-329.87906254,0.00031,30]
[392598002,1761723237372,-190.92786215,0.00031,120]
[392598003,1761723237424,-1281.3094894,0.00031,120]
[392598004,1761723237472,-172.91599339,0.00031,120]
[392598005,1761723237524,-718.31979625,0.00031,120]
[392598006,1761723237573,-1391.53733704,0.00031,120]
[392598007,1761723237627,-820.1646498,0.00031,120]
[392598008,1761723237678,-478.48789576,0.00031,120]
[392598009,1761723237728,-165.47141114,0.00031,120]
[392598010,1761723237779,-800.41699099,0.00031,120]
[392598011,1761723237830,-172.01073332,0.00031,120]
[392598012,1761723237882,-337.52651761,0.00031,120]
[392598013,1761723237937,-3564.08927232,0.00031,120]
[392598014,1761723237990,-495.01099133,0.00031,120]
[392598015,1761723238043,-1604.74813223,0.00031,120]
[392598016,1761723238097,-403.72361849,0.00031,120]
[392598017,1761723238150,-200.0,0.00031008,120]
[392598018,1761723238204,-1000.0,0.00031104,30]
[392598019,1761723238261,-244.0,0.00031104,30]
[392598020,1761723238313,-601.2973814,0.0003122,30]
[392598021,1761723238364,-1000.0,0.00031233,120]
[392598022,1761723238413,-1000.0,0.00031233,120]
[392598023,1761723238467,-200.0,0.00031279,120]
[392598024,1761723238522,-200.0,0.00031355,120]
[392598025,1761723238577,-1000.0,0.00031507,120]
[392598026,1761723238632,-200.0,0.00031627,120]
[392598027,1761723238690,-484.85,0.00031644,30]
[392598028,1761723238744,-150.83,0.00031644,60]
[392598029,1761723238798,-1000.0,0.00031781,120]
[392598030,1761723238854,-1000.0,0.00031781,120]
[392598031,1761723238909,-190.92786215,0.000319,120]
[392598032,1761723238965,-1281.3094894,0.000319,120]
[392598033,1761723239021,-172.91599339,0.000319,120]
[392598034,1761723239074,-718.31979625,0.000319,120]
[392598035,1761723239129,-1391.53733704,0.000319,120]
[392598036,1761723239182,-820.1646498,0.000319,120]
[392598037,1761723239236,-478.48789576,0.000319,120]
[392598038,1761723239292,-800.41699099,0.000319,120]
[392598039,1761723239346,-172.01073332,0.000319,120]
[392598040,1761723239399,-337.52651761,0.000319,120]
[392598041,1761723239453,-3564.08927232,0.000319,120]
[392598042,1761723239507,-495.01099133,0.000319,120]
[392598043,1761723239560,-1604.74813223,0.000319,120]
[392598044,1761723239613,-200.0,0.0003192,120]
[392598045,1761723239666,-1444.0,0.00031945,120]
[392598046,1761723239722,-200.0,0.00031947,120]
[392598047,1761723239774,-340.0,0.00032,120]
[392598048,1761723239826,-1000.0,0.00032,90]
[392598049,1761723239882,-1320.0,0.00032,30]
[392598050,1761723239938,-3311.20426138,0.00032,120]
[392598051,1761723239997,-1000.0,0.00032055,120]
[392598052,1761723240056,-200.0,0.000321,120]
[392598053,1761723240116,-591.0274796,0.00032105,30]
[392598054,1761723240177,-172.704803,0.00032105,30]
[392598055,1761723240243,-591.0274796,0.00032105,30]
[392598056,1761723240302,-294.06002,0.000322,120]
[392598057,1761723240358,-200.0,0.0003227,120]
[392598058,1761723240413,-1000.0,0.00032329,120]
[392598059,1761723240469,-1000.0,0.00032329,120]
[392598060,1761723240524,-1000.0,0.00032603,120]
[392598061,1761723240578,-200.0,0.00032721,120]
[392598062,1761723240635,-151.0,0.00032877,31]
[392598063,1761723240695,-151.0,0.00032877,31]
[392598064,1761723240749,-151.0,0.00032877,31]
[392598065,1761723240802,-151.0,0.00032877,31]
[392598066,1761723240854,-166.658767,0.00032877,31]
[392598067,1761723240907,-151.0,0.00032877,31]
[392598068,1761723240960,-151.0,0.00032877,31]
[392598069,1761723241133,-151.0,0.00032877,31]
[392598070,1761723241185,-151.0,0.00032877,31]
[392598071,1761723241239,-151.0,0.00032877,31]
[392598072,1761723241291,-151.0,0.00032877,31]
[392598073,1761723241343,-151.0,0.00032877,31]
[392598074,1761723241395,-227.253124,0.00032877,31]
[392598075,1761723241450,-1000.0,0.00032877,120]
[392598076,1761723241513,-1000.0,0.00032877,120]
[392598077,1761723241578,-890.9,0.0003288,30]
[392598078,1761723241633,-1281.3094894,0.000329,120]
[392598079,1761723241692,-172.91599339,0.000329,120]
[392598080,1761723241752,-718.31979625,0.000329,120]
[392598081,1761723241815,-1391.53733704,0.000329,120]
[392598082,1761723241877,-820.1646498,0.000329,120]
[392598083,1761723241937,-478.48789576,0.000329,120]
[392598084,1761723241995,-800.41699099,0.000329,120]
[392598085,1761723242054,-337.52651761,0.000329,120]
[392598086,1761723242117,-3564.08927232,0.000329,120]
[392598087,1761723242179,-495.01099133,0.000329,120]
[392598088,1761723242244,-1604.74813223,0.000329,120]
[392598089,1761723242302,-200.0,0.00032945,120]
[392598090,1761723242367,-21805.44399677,0.00033,30]
[392598091,1761723242423,-100000.0,0.00033,120]
[392598092,1761723242480,-50000.0,0.00033,60]
[392598093,1761723242536,-40000.0,0.00033,30]
[392598094,1761723242590,-1738.06967022,0.00033,30]
[392598095,1761723242652,-484.85,0.00033151,30]
[392598096,1761723242710,-150.83,0.00033151,120]
[392598097,1761723242773,-1844.63360955,0.000332,117]
[392598098,1761723242831,-1844.63360955,0.000332,117]
[392598099,1761723242890,-1844.63360955,0.000332,117]
[392598100,1761723242949,-1844.63360955,0.000332,117]
[392598101,1761723243010,-1844.63360955,0.000332,117]
[392598102,1761723243068,-886.72978756,0.0003321,120]
[392598103,1761723243127,-200.0,0.000334,120]
[392598104,1761723243186,-200.0,0.000334,120]
[392598105,1761723243246,-200.0,0.000334,120]
[392598106,1761723243303,-200.0,0.000334,120]
[392598107,1761723243361,-312.65866,0.000334,120]
[392598108,1761723243424,-1000.0,0.00033425,120]
[392598109,1761723243483,-1000.0,0.00033425,120]
[392598110,1761723243547,-200.0,0.00033462,120]
[392598111,1761723243609,-2001.97182,0.000335,120]
[392598112,1761723243674,-294.06002,0.000335,120]
[392598113,1761723243735,-189.321163,0.00033503,60]
[392598114,1761723243793,-200.0,0.00033531,120]
[392598115,1761723243850,-157.0,0.00033534,61]
[392598116,1761723243910,-200.0,0.00033579,120]
[392598117,1761723243970,-3382.18336049,0.00033607,60]
[392598118,1761723244033,-250.0,0.00033607,60]
[392598119,1761723244093,-181.69687323,0.00033624,120]
[392598120,1761723244151,-5376.4,0.00033626,60]
[392598121,1761723244207,-10000.0,0.00033634,60]
[392598122,1761723244267,-10000.0,0.00033634,60]
[392598123,1761723244326,-966.69,0.00033668,60]
[392598124,1761723244388,-1057.76,0.00033767,60]
[392598125,1761723244448,-966.69,0.00033768,60]
[392598126,1761723244516,-1057.76,0.00033867,60]
[392598127,1761723244584,-966.69,0.00033868,60]
[392598128,1761723244649,-1281.3094894,0.000339,120]
[392598129,1761723244717,-718.31979625,0.000339,120]
[392598130,1761723244781,-1391.53733704,0.000339,120]
[392598131,1761723244843,-820.1646498,0.000339,120]
[392598132,1761723244901,-478.48789576,0.000339,120]
[392598133,1761723244962,-800.41699099,0.000339,120]
[392598134,1761723245023,-337.52651761,0.000339,120]
[392598135,1761723245082,-3564.08927232,0.000339,120]
[392598136,1761723245140,-495.01099133,0.000339,120]
[392598137,1761723245198,-1604.74813223,0.000339,120]
[392598138,1761723245258,-200.0,0.00033956,120]
[392598139,1761723245317,-1057.76,0.00033967,60]
[392598140,1761723245373,-966.69,0.00033968,60]
[392598141,1761723245430,-556.53646554,0.00033972,30]
[392598142,1761723245486,-1000.0,0.00033973,120]
[392598143,1761723245545,-1000.0,0.00033973,120]
[392598144,1761723245603,-300.0,0.00034,120]
[392598145,1761723245664,-1058.0286874,0.00034067,60]
[392598146,1761723245721,-966.69,0.00034068,60]
[392598147,1761723245781,-200.0,0.00034074,120]
[392598148,1761723245839,-966.69,0.00034168,60]
[392598149,1761723245898,-1000.0,0.00034215,30]
[392598150,1761723245956,-492.0,0.00034215,30]
[392598151,1761723246013,-966.69,0.00034268,60]
[392598152,1761723246067,-339.0,0.00034303,120]
[392598153,1761723246122,-966.69,0.00034368,60]
[392598154,1761723246178,-966.69,0.00034468,60]
[392598155,1761723246397,-1000.0,0.00034521,120]
[392598156,1761723246454,-1000.0,0.00034521,120]
[392598157,1761723246513,-200.0,0.00034532,120]
[392598158,1761723246573,-200.0,0.00034532,120]
[392598159,1761723246633,-200.0,0.00034532,120]
[392598160,1761723246698,-966.69,0.00034568,60]
[392598161,1761723246757,-966.69,0.00034668,60]
[392598162,1761723246819,-966.69,0.00034768,60]
[392598163,1761723246880,-294.06002,0.000348,120]
[392598164,1761723246942,-966.69,0.00034868,60]
[392598165,1761723247000,-1281.3094894,0.000349,120]
[392598166,1761723247058,-718.31979625,0.000349,120]
[392598167,1761723247115,-1391.53733704,0.000349,120]
[392598168,1761723247177,-820.1646498,0.000349,120]
[392598169,1761723247236,-478.48789576,0.000349,120]
[392598170,1761723247295,-800.41699099,0.000349,120]
[392598171,1761723247352,-337.52651761,0.000349,120]
[392598172,1761723247406,-3564.08927232,0.000349,120]
[392598173,1761723247460,-495.01099133,0.000349,120]
[392598174,1761723247516,-1604.74813223,0.000349,120]
[392598175,1761723247570,-966.69,0.00034968,60]
[392598176,1761723247628,-2498.28612868,0.00035,120]
[392598177,1761723247682,-521.23906499,0.00035,120]
[392598178,1761723247738,-150.0,0.00035,69]
[392598179,1761723247792,-2004.47290655,0.00035,120]
[392598180,1761723247848,-152.0,0.00035,120]
[392598181,1761723247909,-300.0,0.00035,120]
[392598182,1761723247967,-447.73552831,0.00035,120]
[392598183,1761723248026,-1000.0,0.00035068,120]
[392598184,1761723248086,-1000.0,0.00035068,120]
[392598185,1761723248147,-966.69,0.00035068,60]
[392598186,1761723248213,-966.69,0.00035168,60]
[392598187,1761723248274,-966.69,0.00035268,60]
[392598188,1761723248331,-241.1707,0.000353,120]
[392598189,1761723248385,-200.0,0.000353,120]
[392598190,1761723248443,-200.0,0.000353,120]
[392598191,1761723248501,-966.69,0.00035368,60]
[392598192,1761723248560,-966.79181838,0.00035468,60]
[392598193,1761723248616,-1000.0,0.00035616,120]
[392598194,1761723248670,-1000.0,0.00035616,120]
[392598195,1761723248730,-1336.35,0.0003562,30]
[392598196,1761723248784,-3569.0,0.00035891,30]
[392598197,1761723248839,-3564.08927232,0.000359,120]
[392598198,1761723248892,-1604.74813223,0.000359,120]
[392598199,1761723248947,-152.0,0.00035921,30]
[392598200,1761723249002,-463.26488257,0.00036,90]
[392598201,1761723249058,-40694.75721192,0.00036,30]
[392598202,1761723249113,-529.86928665,0.00036,120]
[392598203,1761723249170,-230.19113138,0.0003602,120]
[392598204,1761723249226,-294.06002,0.000361,120]
[392598205,1761723249281,-10000.0,0.0003611,30]
[392598206,1761723249335,-500.0,0.00036126,30]
[392598207,1761723249388,-199.6,0.00036155,30]
[392598208,1761723249441,-1000.0,0.00036164,120]
[392598209,1761723249494,-1000.0,0.00036164,120]
[392598210,1761723249548,-366.0,0.00036303,120]
[392598211,1761723249601,-200.0,0.00036679,120]
[392598212,1761723249658,-200.0,0.00036679,120]
[392598213,1761723249713,-200.0,0.00036679,120]
[392598214,1761723249769,-1000.0,0.00036712,120]
[392598215,1761723249823,-1000.0,0.00036712,120]
[392598216,1761723249880,-888.56,0.00036738,60]
[392598217,1761723249937,-29542.23526873,0.00036789,60]
[392598218,1761723249994,-888.56,0.00036838,60]
[392598219,1761723250051,-888.56,0.00036938,60]
[392598220,1761723250107,-200.0,0.00037,120]
[392598221,1761723250163,-220.0,0.00037,120]
[392598222,1761723250218,-3564.08927232,0.00037,120]
[392598223,1761723250273,-1604.74813223,0.00037,120]
[392598224,1761723250326,-888.56,0.00037038,60]
[392598225,1761723250380,-152.0,0.000371,120]
[392598226,1761723250434,-888.56,0.00037138,60]
[392598227,1761723250487,-200.0,0.000372,120]
[392598228,1761723250538,-200.0,0.000372,120]
[392598229,1761723250588,-888.56,0.00037238,60]
[392598230,1761723250640,-1000.0,0.0003726,120]
[392598231,1761723250699,-1000.0,0.0003726,120]
[392598232,1761723250753,-888.56,0.00037338,60]
[392598233,1761723250805,-1225.16858548,0.0003737,120]
[392598234,1761723250858,-294.0601,0.000374,120]
[392598235,1761723250915,-888.56,0.00037438,60]
[392598236,1761723250973,-888.56,0.00037538,60]
[392598237,1761723251027,-1008.69159289,0.00037583,120]
[392598238,1761723251200,-1000.0,0.00037636,30]
[392598239,1761723251263,-791.0,0.00037636,30]
[392598240,1761723251315,-888.56,0.00037638,60]
[392598241,1761723251364,-200.0,0.00037679,120]
[392598242,1761723251415,-200.0,0.00037679,120]
[392598243,1761723251466,-200.0,0.00037679,120]
[392598244,1761723251521,-888.56,0.00037738,60]
[392598245,1761723251573,-1000.0,0.00037808,120]
[392598246,1761723251625,-1000.0,0.00037808,120]
[392598247,1761723251682,-888.56,0.00037838,60]
[392598248,1761723251737,-289.93,0.00037932,120]
[392598249,1761723251792,-888.56,0.00037938,60]
[392598250,1761723251849,-250.0,0.00038,120]
[392598251,1761723251909,-8140.0,0.00038,30]
[392598252,1761723251967,-182.36267399,0.00038,60]
[392598253,1761723252025,-200.0,0.00038,120]
[392598254,1761723252081,-6288.3510401,0.00038,60]
[392598255,1761723252136,-2306.76200607,0.00038,30]
[392598256,1761723252195,-888.56,0.00038038,60]
[392598257,1761723252257,-3564.08927232,0.000381,120]
[392598258,1761723252312,-1604.74813223,0.000381,120]
[392598259,1761723252370,-888.56,0.00038138,60]
[392598260,1761723252423,-888.56,0.00038238,60]
[392598261,1761723252478,-393.0,0.00038303,120]
[392598262,1761723252537,-888.56,0.00038338,60]
[392598263,1761723252591,-1000.0,0.00038356,120]
[392598264,1761723252657,-1000.0,0.00038356,120]
[392598265,1761723252725,-1781.81,0.0003836,30]
[392598266,1761723252780,-888.56,0.00038438,120]
[392598267,1761723252831,-75000.0,0.0003845,120]
[392598268,1761723252886,-155.0,0.000385,120]